Cogmind - Beta 13 @@@ ROGUE MODE // 2024.04.06 @ 16:14:13 Player: lazy_engineer Result: Self-destructed Performance ------------- Evolutions (3) 1500 Regions Visited (9) 1800 Robots Destroyed (30) 150 Value Destroyed (638) 638 Prototype IDs (24) 480 Alien Tech Used (0) 0 Bonus (800) 800 TOTAL SCORE: 5368 Bonus ------- Entered DSFs 500 Aligned with FarCom 300 Cogmind --------- Core Integrity 343/700 Matter 107/300 Energy 78/100 System Corruption 17% Temperature Cool (0) Movement Core (50) Location -7/DSF Parts ------- > --- POWER (1) -------- (None) > --- PROPULSION (6) --- (None) > --- UTILITY (4) ------ (None) > --- WEAPON (2) ------- (None) > --- INVENTORY (5) ---- Improved Deuterium Engine Datajack Peak State ------------ > --- POWER ------------ Light Nuclear Core > --- PROPULSION ------- Flight Unit Flight Unit Flight Unit Flight Unit > --- UTILITY ---------- Medium Storage Unit Weight Redist. System Structural Scanner Hacking Suite > --- WEAPON ----------- Shotgun Hammer > --- INVENTORY -------- Ion Engine Light Armor Plating Datajack [Rating: 17] Favorites ----------- Power Light Nuclear Core Engine Ion Engine Power Core Light Nuclear Core Propulsion Light Treads Treads Light Treads Flight Unit Flight Unit Utility Small Storage Unit Device Seismic Detector Storage Small Storage Unit Processor Improved Targeting Computer Hackware Hacking Suite Protection Light Armor Plating Weapon Shotgun Energy Gun Medium Laser Ballistic Gun Shotgun Impact Weapon Hammer Slashing Weapon Great Axe Build | -11 -10 -10 -10 -9 -8 -7 -7 -7 -7 ------- Run | Yrd Mat Min Exi Min Mat Fac Was Fac DSF Slots Evolved 6 | . . . . . 4 2 . . . Power . | . . . . . . . . . . Propulsion 4 | . . . . . 2 2 . . . Utility 2 | . . . . . 2 . . . . Weapon . | . . . . . . . . . . Parts Attached 43 | 6 9 5 1 . 10 4 1 1 6 Power 3 | 1 . 1 . . 1 . . . . Engine 2 | 1 . . . . 1 . . . . Core 1 | . . 1 . . . . . . . Reactor . | . . . . . . . . . . Propulsion 11 | 2 1 2 . . 5 . 1 . . Treads 3 | 2 . 1 . . . . . . . Leg . | . . . . . . . . . . Wheel . | . . . . . . . . . . Hover . | . . . . . . . . . . Flight 8 | . 1 1 . . 5 . 1 . . Utility 13 | 1 4 2 1 . 3 2 . . . Device 7 | . 3 1 . . 2 1 . . . Storage 2 | 1 . . 1 . . . . . . Processor 1 | . 1 . . . . . . . . Hackware 1 | . . . . . 1 . . . . Protection 2 | . . 1 . . . 1 . . . Artifact . | . . . . . . . . . . Weapon 16 | 2 4 . . . 1 2 . 1 6 Energy Gun 1 | 1 . . . . . . . . . Energy Cannon . | . . . . . . . . . . Ballistic Gun 5 | 1 4 . . . . . . . . Ballistic Cannon . | . . . . . . . . . . Launcher . | . . . . . . . . . . Special Weapon . | . . . . . . . . . . Impact Weapon 6 | . . . . . 1 . . . 5 Slashing Weapon 4 | . . . . . . 2 . 1 1 Piercing Weapon . | . . . . . . . . . . Special Melee Weapon . | . . . . . . . . . . Unidentified Prototypes 1 | . . . . . 1 . . . . Parts Lost 15 | . . 2 . . 9 . 2 . 2 Power 2 | . . . . . 2 . . . . Propulsion 6 | . . 1 . . 4 . 1 . . Utility 4 | . . 1 . . 2 . 1 . . Weapon 3 | . . . . . 1 . . . 2 Highest Loss Streak 6 | . . 1 . . 6 . 2 . 1 To Critical Strikes . | . . . . . . . . . . Average Slot Usage (%) 87 | . 99 98 100 97 77 36 22 . 5 Engine 5 | . 14 1 . . 5 . . . . Core 6 | . . 12 14 14 2 . . . . Treads 15 | . 26 14 14 14 . . . . . Flight 9 | . 1 13 14 14 31 7 4 . . Device 6 | . 8 8 . . 11 14 6 . . Storage 11 | . 14 14 14 14 8 . . . . Processor 1 | . 5 . . . . . . . . Protection 5 | . . 5 14 14 . 6 4 . . Energy Gun 2 | . 7 . . . . . . . . Ballistic Gun 19 | . 20 28 28 25 8 . . . . Naked Turns 73 | . . . . . . . 36 . 37 Heaviest Build 24 | 14 17 19 24 24 22 8 8 3 3 Greatest Support 40 | 40 40 20 20 20 22 14 5 3 3 Greatest Overweight (x) 3 | . . . 1 1 3 1 1 . . Average Overweight (x) . | . . . . 1 . . . . . Largest Inventory Capacity 10 | 8 8 8 10 10 10 5 5 5 5 Average Capacity 8 | 7 8 8 8 10 9 5 5 5 5 Most Carried 9 | 3 8 8 8 9 9 4 4 3 5 Average Carried 5 | 1 4 7 8 8 2 2 3 3 3 Final Capacity 10 | 8 8 8 10 10 5 5 5 5 5 Final Carried 9 | 1 8 8 8 9 3 3 4 3 2 Class Distribution -------------------- 96% | Mutant Dominant Class ---------------- Mutant | -10/Materials Mutant | -10/Mines Mutant | -10/Exiles Mutant | -9/Mines Scavenger-Mutant | -8/Materials Mutant | -7/Factory Mutant | -7/Waste Mutant | -7/Factory Mutant | -7/DSF Resources | -11 -10 -10 -10 -9 -8 -7 -7 -7 -7 ----------- Run | Yrd Mat Min Exi Min Mat Fac Was Fac DSF Matter Collected 870 | 275 236 253 . 98 . . . . 8 Remotely . | . . . . . . . . . . Salvage Created 1076 | 93 656 264 . 47 . . . . 16 Parts 56 | . 39 16 . 1 . . . . . Haulers Intercepted 2 | . 2 . . . . . . . . Recyclers Shooed 1 | . . 1 . . . . . . . Parts Field Recycled . | . . . . . . . . . . Retrieved Matter . | . . . . . . . . . . Parts Self-Destructed . | . . . . . . . . . . Prevented . | . . . . . . . . . . Kills | -11 -10 -10 -10 -9 -8 -7 -7 -7 -7 ------- Run | Yrd Mat Min Exi Min Mat Fac Was Fac DSF Combat Hostiles Destroyed 20 | . 13 7 . . . . . . . Guns 20 | . 13 7 . . . . . . . Classes Destroyed 7 | 1 5 1 . . . . . . . Hauler 2 | . 2 . . . . . . . . Recycler 4 | 1 2 1 . . . . . . . Operator 1 | . 1 . . . . . . . . Watcher 3 | . 3 . . . . . . . . Swarmer 8 | . 5 3 . . . . . . . Grunt 10 | . 8 2 . . . . . . . Sentry 2 | . . 2 . . . . . . . Best Kill Streak 7 | 1 7 3 . . . . . . . Combat Bots Only 5 | . 5 3 . . . . . . . Max Kills in Single Turn 2 | 1 2 2 . . . . . . . Gunslinging 1 | . 1 . . . . . . . . Exploded . | . . . . . . . . . . Melee . | . . . . . . . . . . Uniques/NPCs Destroyed . | . . . . . . . . . . Combat | -11 -10 -10 -10 -9 -8 -7 -7 -7 -7 -------- Run | Yrd Mat Min Exi Min Mat Fac Was Fac DSF Hostile Shots Fired 156 | . 59 34 . . 35 . 2 . 26 Missed 44 | . 19 5 . . 10 . . . 10 Damage Taken 2070 | . 436 355 . . 821 . 101 . 357 Core 857 | . 43 68 . . 389 . 53 . 304 Absorbed by Shields . | . . . . . . . . . . Core Remaining (%) 61 | 100 . . . 55 29 . . . . Volleys Fired 72 | 5 45 21 . 1 . . . . . Largest 2 | 2 2 2 . 2 . . . . . Hottest 70 | 70 70 46 . 46 . . . . . Shots Fired 144 | 10 90 42 . 2 . . . . . Gun 144 | 10 90 42 . 2 . . . . . Cannon . | . . . . . . . . . . Launcher . | . . . . . . . . . . Special . | . . . . . . . . . . Kinetic 125 | 5 76 42 . 2 . . . . . Thermal 19 | 5 14 . . . . . . . . Explosive . | . . . . . . . . . . Electromagnetic . | . . . . . . . . . . Robot Hit Streak 17 | 5 17 12 . 1 . . . . . Robot Miss Streak 5 | 2 4 5 . 1 . . . . . Penetration Max . | . . . . . . . . . . Secondary Targets 2 | . 2 . . . . . . . . Max Gunslinging Chain 1 | . 1 . . . . . . . . Shots Hit Robots 121 | 7 72 34 . 1 6 . . . 1 Core Hits 55 | 2 37 15 . 1 . . . . . Critical Kills . | . . . . . . . . . . Critical Parts Destroyed 1 | . . . . . 1 . . . . Critical Strikes 2 | . 1 . . . 1 . . . . Burn 1 | . 1 . . . . . . . . Smash 1 | . . . . . 1 . . . . Melee Attacks 30 | . . . . . 17 6 . . 7 Impact 24 | . . . . . 17 2 . . 5 Slashing 6 | . . . . . . 4 . . 2 Piercing . | . . . . . . . . . . Sneak Attacks . | . . . . . . . . . . Combat Hostiles . | . . . . . . . . . . Follow-up Attacks . | . . . . . . . . . . Damage Inflicted 1976 | 95 1105 560 . 10 144 . . . 62 Guns 1770 | 95 1105 560 . 10 . . . . . Cannons . | . . . . . . . . . . Explosions . | . . . . . . . . . . Melee 206 | . . . . . 144 . . . 62 Ramming . | . . . . . . . . . . Kinetic 1581 | 58 953 560 . 10 . . . . . Thermal 189 | 37 152 . . . . . . . . Explosive . | . . . . . . . . . . Electromagnetic . | . . . . . . . . . . Impact 206 | . . . . . 144 . . . 62 Slashing . | . . . . . . . . . . Piercing . | . . . . . . . . . . Highest Corruption 17 | . . . . . 10 . 17 17 17 Average Corruption 11 | . . . . . 10 . 9 17 17 Corruption Purged . | . . . . . . . . . . Corruption Blocked . | . . . . . . . . . . Effects 17 | . . . . . 8 . 5 1 3 Message Errors 3 | . . . . . 2 . . . 1 Matter Fused 2 | . . . . . 1 . 1 . . Heat Flow Errors 4 | . . . . . 1 . 1 1 1 Energy Discharges 4 | . . . . . 2 . 2 . . Parts Rejected 1 | . . . . . . . 1 . . Data Loss (minor) 3 | . . . . . 2 . . . 1 Overload Shots . | . . . . . . . . . . Overflow Damage 61 | . . . . . 29 . . . 32 Projectiles . | . . . . . . . . . . Explosions . | . . . . . . . . . . Melee 61 | . . . . . 29 . . . 32 Knockbacks 1 | . . . . . . . . . 1 Impact 1 | . . . . . . . . . 1 Kinetic . | . . . . . . . . . . Secondary . | . . . . . . . . . . Self-Inflicted Damage . | . . . . . . . . . . Shots . | . . . . . . . . . . Rammed . | . . . . . . . . . . Targets Rammed . | . . . . . . . . . . Kicked . | . . . . . . . . . . Crushed . | . . . . . . . . . . Highest Temperature 197 | 45 129 19 . . 122 . 197 66 176 Average Temperature 37 | 23 37 4 . . 68 . 112 49 95 Received Heat Transfer 459 | . 201 132 . . 126 . . . . Siege Activations . | . . . . . . . . . . Robots Corrupted . | . . . . . . . . . . Combat Hostiles . | . . . . . . . . . . Parts Fried . | . . . . . . . . . . Impact Corruptions 2 | . . . . . 1 . . . 1 Robots Melted . | . . . . . . . . . . Combat Hostiles . | . . . . . . . . . . Parts Melted 2 | 1 1 . . . . . . . . Heat Transferred 629 | 111 518 . . . . . . . . Parts Sabotaged . | . . . . . . . . . . Parts Stolen . | . . . . . . . . . . Parts Stripped . | . . . . . . . . . . Power Chain Reactions . | . . . . . . . . . . Alert | -11 -10 -10 -10 -9 -8 -7 -7 -7 -7 ------- Run | Yrd Mat Min Exi Min Mat Fac Was Fac DSF Peak Influence 203 | 5 203 193 . 5 30 10 15 10 20 Initial 78 | . 3 78 . . . 6 . 10 7 Average 41 | 2 50 119 . 1 3 8 2 10 7 Maximum Alert Level 1 | . 1 . . . . . . . . Low Security (%) 98 | 100 95 100 . 100 100 100 100 100 100 Level 1 1 | . 4 . . . . . . . . Level 2 . | . . . . . . . . . . Level 3 . | . . . . . . . . . . Level 4 . | . . . . . . . . . . Level 5 . | . . . . . . . . . . High Security . | . . . . . . . . . . Max Security . | . . . . . . . . . . Squads Dispatched 5 | . 4 . . . . . . . 1 Investigation 3 | . 3 . . . . . . . . Extermination . | . . . . . . . . . . Reinforcement 2 | . 1 . . . . . . . 1 Assault . | . . . . . . . . . . Garrison . | . . . . . . . . . . Intercept . | . . . . . . . . . . Searches Triggered . | . . . . . . . . . . Construction Impeded . | . . . . . . . . . . Haulers Reinforced . | . . . . . . . . . . Active Scanning Responses . | . . . . . . . . . . Cargo Convoy Interrupts . | . . . . . . . . . . Stealth | -11 -10 -10 -10 -9 -8 -7 -7 -7 -7 --------- Run | Yrd Mat Min Exi Min Mat Fac Was Fac DSF Distress Signals 3 | . 3 . . . . . . . . Communications Jammed . | . . . . . . . . . . Distress Signals . | . . . . . . . . . . Times Spotted 39 | . 20 6 . . 5 . 5 . 3 Peak Tracking Total 6 | . 6 2 . . 5 . 5 . 2 Tactical Retreats 2 | . . . . . 1 . . . 1 Traps | -11 -10 -10 -10 -9 -8 -7 -7 -7 -7 ------- Run | Yrd Mat Min Exi Min Mat Fac Was Fac DSF Traps Triggered 3 | . 2 . . . . 1 . . . Indirectly . | . . . . . . . . . . Trap Hack Attempts . | . . . . . . . . . . Triggered . | . . . . . . . . . . Disarmed . | . . . . . . . . . . Reprogrammed . | . . . . . . . . . . Reused . | . . . . . . . . . . Traps Extracted . | . . . . . . . . . . Installed . | . . . . . . . . . . Triggered . | . . . . . . . . . . Machines | -11 -10 -10 -10 -9 -8 -7 -7 -7 -7 ---------- Run | Yrd Mat Min Exi Min Mat Fac Was Fac DSF Machines Disabled 1 | . . . . . . . . . 1 Max in Single Turn 1 | . . . . . . . . . 1 Machines Repaired . | . . . . . . . . . . Machines Dismantled . | . . . . . . . . . . Machines Sabotaged . | . . . . . . . . . . Overloaded Fab Kills . | . . . . . . . . . . Hacking | -11 -10 -10 -10 -9 -8 -7 -7 -7 -7 --------- Run | Yrd Mat Min Exi Min Mat Fac Was Fac DSF Machines Accessed 8 | . 5 . 1 . 1 . . 1 . Terminals 5 | . 3 . . . 1 . . 1 . Fabricators . | . . . . . . . . . . Repair Stations . | . . . . . . . . . . Recycling Units 2 | . 2 . . . . . . . . Scanalyzers . | . . . . . . . . . . Garrison Access . | . . . . . . . . . . Total Hacks 17 | . 12 . 1 . 3 . . 1 . Successful 8 | . 5 . 1 . 1 . . 1 . Failed 9 | . 7 . . . 2 . . . . Catastrophic 2 | . 2 . . . . . . . . Database Lockouts . | . . . . . . . . . . Manual 10 | . 9 . 1 . . . . . . Terminals 12 | . 8 . . . 3 . . 1 . Fabricators . | . . . . . . . . . . Repair Stations . | . . . . . . . . . . Recycling Units 4 | . 4 . . . . . . . . Scanalyzers . | . . . . . . . . . . Garrison Access . | . . . . . . . . . . Terminal Hacks 5 | . 2 . 1 . 1 . . 1 . Open DSF 1 | . . . . . . . . 1 . Transport Status 1 | . 1 . . . . . . . . Hauler Manifests 1 | . 1 . . . . . . . . Zone Layout 1 | . . . . . 1 . . . . Derelict Proto ID Bank 1 | . . . 1 . . . . . . Fabricator Hacks . | . . . . . . . . . . Repair Station Hacks . | . . . . . . . . . . Recycling Unit Hacks 1 | . 1 . . . . . . . . Report Inventory 1 | . 1 . . . . . . . . Scanalyzer . | . . . . . . . . . . Garrison Access Hacks . | . . . . . . . . . . Unauthorized Hacks 2 | . 2 . . . . . . . . Terminals . | . . . . . . . . . . Fabricators . | . . . . . . . . . . Repair Stations . | . . . . . . . . . . Recycling Units 2 | . 2 . . . . . . . . Reject 1 | . 1 . . . . . . . . Tunnel 1 | . 1 . . . . . . . . Scanalyzers . | . . . . . . . . . . Garrison Access . | . . . . . . . . . . Data Cores Recovered . | . . . . . . . . . . Used . | . . . . . . . . . . Hacking Detections 4 | . 3 . . . 1 . . . . Full Trace Events 1 | . 1 . . . . . . . . Feedback Events . | . . . . . . . . . . Feedback Blocked . | . . . . . . . . . . Robot Schematics Acquired . | . . . . . . . . . . Robots Built . | . . . . . . . . . . Authchips . | . . . . . . . . . . Time . | . . . . . . . . . . Total Robot Build Rating . | . . . . . . . . . . Part Schematics Acquired . | . . . . . . . . . . Parts Built . | . . . . . . . . . . Authchips . | . . . . . . . . . . Time . | . . . . . . . . . . Total Part Build Rating . | . . . . . . . . . . Parts Repaired . | . . . . . . . . . . Time . | . . . . . . . . . . Parts Recycled . | . . . . . . . . . . Recycled Matter . | . . . . . . . . . . Retrieved Matter . | . . . . . . . . . . Retrieved Components . | . . . . . . . . . . Parts Scanalyzed . | . . . . . . . . . . Part Schematics Acquired . | . . . . . . . . . . Parts Damaged . | . . . . . . . . . . Bothacking | -11 -10 -10 -10 -9 -8 -7 -7 -7 -7 ------------ Run | Yrd Mat Min Exi Min Mat Fac Was Fac DSF Used RIF Installer . | . . . . . . . . . . Robots Hacked . | . . . . . . . . . . Non-combat . | . . . . . . . . . . Combat . | . . . . . . . . . . Robot Hacks Applied . | . . . . . . . . . . Relay Couplers Released . | . . . . . . . . . . Fabnet Peak Effective % . | . . . . . . . . . . Robots Rewired . | . . . . . . . . . . Allies Hacked . | . . . . . . . . . . Hacks Repelled . | . . . . . . . . . . Allies | -11 -10 -10 -10 -9 -8 -7 -7 -7 -7 -------- Run | Yrd Mat Min Exi Min Mat Fac Was Fac DSF Total Allies 1 | . . . . . . . 1 . . Largest Group 1 | . . . . . . . 1 . . Highest-Rated Group 31 | . . . . . . . 31 . . Highest-Rated Ally 31 | . . . . . . . 31 . . Total Orders . | . . . . . . . . . . Ally Attacks 2 | . . . . . . . 2 . . Total Damage 41 | . . . . . . . 41 . . Kills . | . . . . . . . . . . Allies Corrupted . | . . . . . . . . . . Allies Melted . | . . . . . . . . . . Intel | -11 -10 -10 -10 -9 -8 -7 -7 -7 -7 ------- Run | Yrd Mat Min Exi Min Mat Fac Was Fac DSF Robot Analysis Total . | . . . . . . . . . . Derelict Logs Recovered 3 | . . 1 . 2 . . . . . Drone Launches . | . . . . . . . . . . Drone Recoveries . | . . . . . . . . . . Exploration | -11 -10 -10 -10 -9 -8 -7 -7 -7 -7 ------------- Run | Yrd Mat Min Exi Min Mat Fac Was Fac DSF Turns Passed 4524 | 85 1486 742 432 906 225 441 122 9 76 Spaces Moved 2114 | 41 487 415 256 373 164 139 148 15 76 Core 167 | 7 . . . . . . 69 15 76 Treads 1565 | 34 487 415 256 373 . . . . . Legs . | . . . . . . . . . . Wheels . | . . . . . . . . . . Hover . | . . . . . . . . . . Flight 382 | . . . . . 164 139 79 . . Fastest Speed 31 | 50 160 160 160 240 31 35 35 50 50 Average Speed 152 | 141 160 160 168 240 77 74 78 50 50 Slowest Speed 280 | 160 160 160 240 240 280 105 105 50 50 Overloaded Moves . | . . . . . . . . . . Propulsion Burnouts . | . . . . . . . . . . Robots Hopped . | . . . . . . . . . . Cave-ins Triggered 1 | . . . . . 1 . . . . Exploration Rate (%) 49 | 4 81 77 61 76 20 5 88 1 80 Regions Visited 9 Branch Regions 3 Pre-discovered Areas 3 | . 1 1 . 1 . . . . . Known Exits Taken 1 | . . . . . . . . 1 . Unknown Exits Taken 6 | 1 1 1 1 1 1 . . . . Scrap Searched 2 | . . 1 . 1 . . . . . Spaces Dug 12 | . . . . . 6 5 . . 1 Terrain Destroyed 12 | . . . . . 6 5 . . 1 Melee 12 | . . . . . 6 5 . . 1 Projectile . | . . . . . . . . . . AOE . | . . . . . . . . . . Terrain Rammed . | . . . . . . . . . . Walls Destroyed . | . . . . . . . . . . Machines Disabled . | . . . . . . . . . . Actions | -11 -10 -10 -10 -9 -8 -7 -7 -7 -7 --------- Run | Yrd Mat Min Exi Min Mat Fac Was Fac DSF Total 3221 | 58 1106 451 257 383 232 466 152 15 101 Wait 914 | . 540 8 . 8 37 314 2 . 5 Move 2106 | 40 486 414 255 372 163 139 147 14 76 Hop . | . . . . . . . . . . Pick Up 37 | 7 15 1 . 1 3 2 2 . 6 Fast Attach 6 | . 4 2 . . . . . . . Attach 29 | 6 2 1 . . 9 3 1 1 6 Detach 1 | . . . . . . 1 . . . Swap 8 | . 3 2 1 . 1 1 . . . Drop 18 | . 11 2 1 1 2 . . . 1 Fire 72 | 5 45 21 . 1 . . . . . Melee 30 | . . . . . 17 6 . . 7 Ram . | . . . . . . . . . . Kick . | . . . . . . . . . . Crush . | . . . . . . . . . . Escape Stasis . | . . . . . . . . . . Rewire . | . . . . . . . . . . Trap . | . . . . . . . . . . Miscellaneous . | . . . . . . . . . . Route ------- -11/Scrapyard -10/Materials (discovered 3 exits: [*Mat x2] / [*Min]) -10/Mines (discovered 3 exits: [*Mat x2] / *Exi) -10/Exiles -9/Mines -8/Materials -7/Factory (discovered 2 exits: Sto / [*Low]) -7/Waste -7/Factory -7/DSF (discovered 1 exit: [*Fac]) History --------- Turn | Location | Event 4 | -11/Scrapyard | Discovered new exit (range 15) 86 | -11/Scrapyard | Entered Materials 310 | -10/Materials | Build established: Mutant 864 | -10/Materials | Discovered new exit (range 15) 980 | -10/Materials | Discovered new exit (range 16) 1392 | -10/Materials | Discovered new exit (range 16) 1572 | -10/Materials | Entered Mines 1587 | -10/Mines | Met a Derelict bent on vengeance 1766 | -10/Mines | Discovered new exit (range 8) 1921 | -10/Mines | Found a hidden stash of uninstalled traps 2294 | -10/Mines | Discovered new exit (range 11) 2308 | -10/Mines | Deemed a non-threat by the Exiles lab entrance 2308 | -10/Mines | Discovered new exit (range 5) 2314 | -10/Mines | Entered Exiles 2353 | -10/Exiles | Met 8R-AWN 2380 | -10/Exiles | Met EX-HEX 2478 | -10/Exiles | Met EX-BIN 2495 | -10/Exiles | Aligned with FarCom system 2497 | -10/Exiles | Given EX-Vault access code 2537 | -10/Exiles | Opened EX-Vault 2575 | -10/Exiles | Warned to stay clear of 0b10 Research branches 2623 | -10/Exiles | Met EX-DEC 2724 | -10/Exiles | Discovered new exit (range 10) 2746 | -10/Exiles | Entered Mines 2780 | -9/Mines | Learned location of Zion (-7) 3541 | -9/Mines | Discovered new exit (range 7) 3652 | -9/Mines | Entered Materials 3652 | -8/Materials | Evolved 4 slots: Propulsion x2, Utility x2 3705 | -8/Materials | Crushed by falling debris 3705 | -8/Materials | System corruption reached 10% 3736 | -8/Materials | Lost 3 parts (1p2u) 3852 | -8/Materials | Core integrity fell below 50% 3875 | -8/Materials | Discovered new exit (range 4) 3877 | -8/Materials | Entered Factory 3877 | -7/Factory | Evolved 2 slots: Propulsion x2 3878 | -7/Factory | Identified exit to Storage 3894 | -7/Factory | Lost 6 parts (1p4n1w) 3919 | -7/Factory | Discovered new exit (range 7) 4318 | -7/Factory | Sucked down chute 4318 | -7/Factory | Entered Waste 4319 | -7/Waste | Met a frightened Derelict 4330 | -7/Waste | Spotted C-40 Crusher 4330 | -7/Waste | Spotted C-40 Crusher 4333 | -7/Waste | EMP discharged 4337 | -7/Waste | Spotted C-40 Crusher 4343 | -7/Waste | Spotted C-40 Crusher 4402 | -7/Waste | Crushed by Compactor (1 part destroyed, 2 dropped) 4404 | -7/Waste | Crushed by Compactor (1 part destroyed, 1 dropped) 4412 | -7/Waste | Spotted C-40 Crusher 4420 | -7/Waste | Spotted C-40 Crusher 4432 | -7/Waste | Discovered new exit (range 16) 4433 | -7/Waste | EMP discharged 4433 | -7/Waste | System corruption reached 10% 4440 | -7/Waste | Entered Factory 4449 | -7/Factory | Identified exit to DSF 4449 | -7/Factory | Entered DSF 4470 | -7/DSF | Additional patrols routed to DSF 4475 | -7/DSF | Discovered new exit (range 15) 4525 | -7/DSF | Self-destructed Last Messages --------------- 04470_ Hostiles detected in DSF, routing additional patrols. 04475_ EXIT=FOUND 04476_ Penetrated by Slug. 04476_ Axe destroyed. 04481_ Acquired Great Maul. 04483_ System corrupted: Heat flow error (+230). 04485_ Dropped Hammer. 04492_ Acquired Imp. Deuterium Engine. 04498_ ALERT: Suspicious intruders detected, dispatching Cutter reinforcements to area. 04501_ Great Maul severed. 04507_ Great Axe destroyed. 04508_ Acquired Great Maul. 04510_ Great Maul severed. 04513_ Acquired Great Maul. 04518_ Destroyed Concussive RPG. 04518_ C-17 Slicer system corrupted by crushing effect. 04519_ Acquired 8 matter. 04519_ Great Maul severed. 04525_ J9TF40 =NMIL58DVASIT:1I VC,|4 Map ----- +----------------------------------------------------+ | | | | | | | | | | | | | | | | | | | | | | | | | | | | | | | | | ????????????????????????????????????? | | ????????????????????????????????????? | | ????????????????????????????????????? | | ?????????????????????????##?????????? | | ????????????????????????#""?????????? | | ????????????????????????#"#?????????? | | ???????#########???????##"####??????? | | ???????# **#########"""""#??????? | | ???????# * #///# ##"""""#??????? | | ???????# ^ @c%"##"#???? | | ???????# /c"""""#???? | | ???????### ### #//## ""####???? | | ?????????# ??# #//### ###??????? | | ???????? ???########## ##???????? | | ???????# ??????????#/ /#???????? | | ???????# ???????????#/ /#???????? | | ???????### ???????????### ##???????? | | ???????#[[????????????# #???????? | | ???????#[[ ???????????# #???????? | | ????????[[ ??????????# #???????? | | ???###??## ??########## ###??????? | | ???#!!!?## #?#!!!# ## ##?????? | | ?? #!!!## ##!!!# ## "#?????? | | ??? ##?????? | | ??? ^ #??????? | | ??? % #??????? | | ???????## ##!!!#!!!## !!#??????? | | ????????## ###!!!#!!!## !!#??????? | | ???????### "#"##############??????? | | ???????#!! !!##???????????????????? | | ???????#!! !!#????????????????????? | | ???????#!! !!#????????????????????? | | ???????### ""#????????????????????? | | ???????# #????????????????????? | +----------------------------------------------------+ Best States ------------- Heat Dissipation 34 Energy Generation 14 Energy Capacity 250 Matter Stores 300 Matter Capacity 300 Sight Range 16 Robot Scan Range 14 Terrain Scan Density 10 Additional Mass Support 9 Armor Coverage 150 Evasion (%) 63 Targeting Accuracy 6 Recoil Reduction 2 Offensive Hacking 10 Item Schematics ----------------- None Robot Schematics ------------------ None Fabricated ------------ Nothing Alien Tech Used ----------------- None Achievements -------------- None Challenges ------------ None Game ------ Seed BombardmentOpticalBlade Manual? 0 Play Time 00:29:55 Cumulative 27.5 hours Start 2024.04.06 @ 15:45:33 End 2024.04.06 @ 16:14:13 Sessions 1 Manual Loads 0 Difficulty Rogue Special Mode None Game No. 51 Rogue 51 Adventurer 0 Explorer 0 Win Type - Total 0 Types 0/0/0/0/0/0/0/0/0 Lore% 22 Gallery% 25 Achievement% 22 Wizard Run 0 Options --------- Layout 0 ASCII 0 Keyboard 0 Movement Mouse Keybinds 0 Fullscreen 1 Font 24/Smallcaps Map View 76x50 Zoom Use 0% Tactical HUD 1 Map Filters NONE Filters NONE Steam 1 RUN: 2ab90bac-47f0-4e35-8d5c-31f2dfa867b1